bitfinex/quotes_ETHUSD_20240715
["timestamp","ask_amount","ask_price","bid_price","bid_amount"]
[1721061873682,0.07357278,3398.2,3396.7,2.944]
[1721061873877,0.07357278,3398.2,3396.8,2.94391]
[1721061874083,0.07357278,3398.2,3396.9,2.94385]
[1721061874325,0.2714132,3398.1,3396.7,2.94397]
[1721061874494,0.07358371,3398.0,3395.9,2.94465]
[1721061874691,0.2714132,3398.1,3395.8,2.3985]
[1721061874692,0.2714132,3398.1,3397.1,2.94361]
[1721061874895,0.2714132,3398.1,3397.2,3.00245438]
[1721061875227,2.40050837,3398.4,3397.3,2.94345]
[1721061875431,0.07357371,3398.3,3397.1,2.94362]
[1721061875581,0.62357371,3398.3,3397.1,2.94362]
[1721061875935,0.62357371,3398.3,3397.2,2.94359]
[1721061876296,0.62357371,3398.3,3396.9,2.94383]
[1721061876523,0.64200821,3398.2,3397.2,2.94354]
[1721061876865,0.64200821,3398.2,3397.0,5.94372]
[1721061877238,0.07357812,3398.1,3397.1,2.94368]
[1721061877381,0.07357812,3398.1,3397.0,3.0]
[1721061877585,0.07357812,3398.1,3397.0,5.94376]
[1721061878328,0.07358302,3398.3,3397.0,5.94376]
[1721061878522,1.21059216,3398.2,3397.0,5.94376]
[1721061878831,1.13700914,3398.2,3397.1,2.94368]
[1721061879125,0.07358261,3398.1,3397.1,2.94368]
[1721061879325,1.13700914,3398.2,3397.4,2.9434]
[1721061879326,0.58700914,3398.2,3397.4,2.9434]
[1721061879634,0.07357453,3398.3,3397.3,2.9435]
[1721061879921,2.40050837,3398.4,3397.8,5.88604]
[1721061880129,2.40050837,3398.4,3397.4,5.9434]
[1721061880298,2.40050837,3398.4,3397.5,2.94333]
[1721061880654,0.00230837,3398.4,3397.6,3.0]
[1721061880949,0.00230837,3398.4,3398.1,2.9428]
[1721061881306,0.00230837,3398.4,3397.7,2.94315]
[1721061881507,0.00230837,3398.4,3397.8,3.0]
[1721061881701,0.00230837,3398.4,3397.6,3.0]
[1721061882107,0.00230837,3398.4,3397.5,3.0]
[1721061882307,2.3118,3398.3,3397.5,3.0]
[1721061882621,2.3118,3398.3,3397.4,3.0]
[1721061882814,2.5505684,3398.3,3397.4,3.0]
[1721061883337,2.3118,3398.3,3397.6,2.94319]
[1721061883541,2.3118,3398.3,3397.7,3.0]
[1721061883745,2.3118,3398.3,3397.7,5.94315]
[1721061883923,2.3118,3398.3,3397.8,0.05885537]
[1721061884121,0.00230837,3398.4,3397.7,3.0]
[1721061884317,0.00230837,3398.4,3398.0,2.94283]
[1721061884517,0.00230837,3398.4,3398.2,2.94272]
[1721061885418,0.00230837,3398.4,3397.5,3.0]
[1721061885623,0.00230837,3398.4,3397.3,2.94343]
[1721061885818,0.00230837,3398.4,3397.9,2.94299]
[1721061886244,0.00230837,3398.4,3397.7,2.94315]
[1721061886413,0.00230837,3398.4,3397.9,2.94297]
[1721061886739,0.00230837,3398.4,3397.8,5.94307]
[1721061886740,0.00230837,3398.4,3397.8,5.94304]
[1721061887123,0.00230837,3398.4,3397.8,3.0]
[1721061887547,0.00230837,3398.4,3397.6,3.0]
[1721061887849,2.2998,3398.3,3397.6,3.0]
[1721061888014,2.2998,3398.3,3397.4,2.94335]
[1721061888015,2.5373681,3398.3,3397.4,2.94335]
[1721061888215,2.5373681,3398.3,3397.5,3.0]
[1721061888552,0.0735752,3398.2,3397.5,3.0]
[1721061888708,0.0735752,3398.2,3397.2,2.94359]
[1721061888709,0.0735752,3398.2,3397.3,3.0]
[1721061889114,0.0735752,3398.2,3397.0,2.94369]
[1721061889422,0.26132517,3398.1,3397.1,2.94366]
[1721061889956,0.07357937,3398.0,3397.1,2.94366]
[1721061890155,0.07357937,3398.0,3397.2,2.94359]
[1721061890342,0.26132517,3398.1,3397.2,2.94359]
[1721061890538,0.26132517,3398.1,3397.3,5.94344]
[1721061890929,2.2998,3398.3,3397.3,5.94344]
[1721061891261,0.0735793,3398.2,3397.3,5.94344]
[1721061892115,0.0735793,3398.2,3397.3,3.0]
[1721061892420,0.0735793,3398.2,3397.3,5.94348]
[1721061892638,2.2998,3398.3,3397.3,5.94348]
[1721061893054,2.2998,3398.3,3397.6,2.94324]
[1721061893854,2.2998,3398.3,3397.8,2.94307]
[1721061894413,2.2998,3398.3,3397.7,2.94313]
[1721061894614,2.2998,3398.3,3397.6,2.94324]
[1721061894815,2.2998,3398.3,3397.7,2.94314]
[1721061895852,2.2998,3398.3,3397.5,2.94332]
[1721061896056,2.2998,3398.3,3397.6,2.94324]
[1721061896259,2.2998,3398.3,3397.7,2.94315]
[1721061896563,2.2998,3398.3,3397.7,2.94311]
[1721061896757,0.00230837,3398.4,3397.8,0.05885336]
[1721061896961,0.00230837,3398.4,3398.2,2.94272]
[1721061897545,0.00230837,3398.4,3398.2,3.00156802]
[1721061897745,0.00230837,3398.4,3397.9,2.94297]
[1721061898527,0.00230837,3398.4,3398.1,2.94276]
[1721061899061,0.00230837,3398.4,3397.6,3.0]
[1721061899265,0.00230837,3398.4,3397.7,3.0]
[1721061899566,2.3274,3398.3,3396.4,2.94422]
[1721061900065,2.3274,3398.3,3397.3,2.94351]
[1721061900235,2.3274,3398.3,3397.5,2.94331]
[1721061900436,2.3274,3398.3,3397.3,2.94348]
[1721061900641,0.07357381,3398.2,3397.0,2.94371]
[1721061900849,0.07357381,3398.2,3396.9,2.94384]
[1721061901364,0.07357381,3398.2,3396.5,0.30655719]
[1721061901365,2.3274,3398.3,3397.1,2.94363]
[1721061901587,0.00230837,3398.4,3396.7,2.94401]
[1721061901588,0.00230837,3398.4,3398.1,2.94281]
[1721061901766,0.00230837,3398.4,3397.7,2.94314]
[1721061902058,0.00230837,3398.4,3397.2,5.94357]
[1721061902476,0.00230837,3398.4,3397.3,2.9435]
[1721061902775,0.00230837,3398.4,3397.5,2.94333]
[1721061902938,2.4288,3398.3,3397.2,3.0]
[1721061903263,0.07358162,3398.2,3397.2,3.0]
[1721061903459,0.07358162,3398.2,3397.1,2.94366]
[1721061903649,0.07358162,3398.2,3397.2,2.94359]
[1721061904173,0.07358162,3398.2,3396.9,2.94385]
[1721061904469,0.07358162,3398.2,3397.0,5.94376]
[1721061904641,0.27478008,3398.1,3397.0,5.94376]
[1721061904829,0.27478008,3398.1,3397.1,2.94365]
[1721061904830,0.07358399,3398.0,3397.1,2.94365]
[1721061905031,0.07358399,3398.0,3397.0,3.0]
[1721061905226,2.4705,3397.9,3396.7,3.0]
[1721061905433,2.4705,3397.9,3396.7,5.94401]
[1721061905664,0.65812215,3397.8,3396.7,5.94401]
[1721061905951,0.65812215,3397.8,3395.9,2.94467]
[1721061905952,0.65812215,3397.8,3396.6,2.94406]
[1721061906363,0.65812215,3397.8,3396.0,2.9446]
[1721061906565,0.65812215,3397.8,3396.6,2.94405]
[1721061906727,2.4705,3397.9,3396.9,2.94382]
[1721061906931,2.4705,3397.9,3397.0,0.05886844]
[1721061907272,2.4705,3397.9,3397.1,2.94366]
[1721061907842,2.4705,3397.9,3397.2,2.9436]
[1721061908057,2.4705,3397.9,3397.3,2.94349]
[1721061908370,2.4705,3397.9,3397.3,2.94345]
[1721061909232,2.4705,3397.9,3397.3,2.94349]
[1721061909432,2.4705,3397.9,3397.1,2.94368]
[1721061909641,2.4705,3397.9,3397.2,3.0]
[1721061910167,2.4705,3397.9,3397.2,2.94358]
[1721061910701,0.07358971,3397.8,3396.9,2.94381]
[1721061910873,0.07359001,3397.8,3396.9,2.94381]
[1721061911059,0.07359024,3397.7,3395.6,2.94495]
[1721061911263,2.62159024,3397.7,3396.2,2.94444]
[1721061911495,2.62159024,3397.7,3396.4,2.94427]
[1721061911694,2.62159024,3397.7,3396.3,2.94436]
[1721061911695,2.485,3397.5,3396.3,2.94436]
[1721061911880,0.07360285,3397.4,3396.3,2.94436]
[1721061912061,0.56586028,3397.3,3396.3,2.94436]
[1721061912261,0.07360285,3397.2,3396.3,2.94436]
[1721061912492,0.07360285,3397.2,3396.2,2.94445]
[1721061912660,0.07360285,3397.2,3395.9,2.94472]
[1721061912867,0.07360285,3397.2,3396.0,3.0]
[1721061913080,0.07360285,3397.2,3396.1,2.94453]
[1721061913286,0.07360285,3397.2,3396.0,2.94463]
[1721061913573,0.07360285,3397.2,3396.1,2.94455]
[1721061913792,0.07360285,3397.2,3395.9,2.94471]
[1721061913991,0.07360285,3397.2,3395.4,2.94514]
[1721061913992,2.548,3396.9,3395.4,2.94514]
[1721061914192,2.4934,3396.4,3395.4,2.94514]
[1721061914409,0.07362121,3396.3,3395.0,2.9455]
[1721061914723,0.07362717,3396.2,3395.2,2.94532]
[1721061914908,2.41,3396.0,3394.7,2.9457]
[1721061915090,0.07363674,3395.9,3394.7,2.9457]
[1721061915421,0.89846367,3395.9,3394.8,0.05890939]
[1721061915594,2.41,3396.0,3395.0,2.94549]
[1721061915797,2.41,3396.0,3394.8,2.94563]
[1721061916114,2.41,3396.0,3394.2,2.94615]
[1721061916115,2.41,3396.0,3394.2,3.0050566]
[1721061916321,2.41,3396.0,3395.1,2.94536]
[1721061916523,2.9911,3396.0,3395.1,2.94536]
[1721061916705,2.9911,3396.0,3394.7,10.34575]
[1721061916911,0.07362717,3395.9,3394.7,10.34575]
[1721061917110,2.9911,3396.0,3394.8,2.94567]
[1721061917324,0.07363435,3395.9,3394.7,7.4]
[1721061917514,0.30647343,3395.8,3394.7,7.4]
[1721061917721,2.9911,3396.0,3394.8,0.05890739]
[1721061917891,2.9911,3396.0,3395.0,2.94549]
[1721061918096,2.9911,3396.0,3394.8,2.9456]
[1721061918297,0.07363434,3395.9,3394.8,5.9456]
[1721061918605,2.9911,3396.0,3394.8,5.9456]
[1721061918806,0.94921,3395.9,3394.8,5.9456]
[1721061919033,1.02284435,3395.9,3394.8,3.0]
[1721061919245,4.12284435,3395.9,3394.8,3.0]
[1721061919448,3.65,3395.8,3394.6,3.0]
[1721061919739,3.65,3395.8,3394.4,2.94596]
[1721061919740,2.3485,3395.6,3394.4,2.94596]
[1721061919906,2.3485,3395.1,3394.0,7.4]
[1721061920110,0.07365519,3395.0,3393.7,2.94663]
[1721061920319,3.1,3394.9,3393.4,7.4]
[1721061920518,2.3843,3394.8,3393.6,2.94667]
[1721061921035,3.1,3394.7,3393.6,2.94667]
[1721061921238,0.07366759,3394.6,3393.4,10.34688]
[1721061921409,0.55579676,3394.5,3393.4,7.4]
[1721061921613,0.07366957,3394.4,3393.4,7.4]
[1721061921839,3.65579676,3394.5,3393.4,7.4]
[1721061922049,0.55579676,3394.5,3393.4,7.4]
[1721061922219,3.401,3394.7,3393.8,2.94647]
[1721061922419,3.401,3394.7,3393.5,2.94678]
[1721061923130,0.07365991,3394.6,3393.4,7.4]
[1721061923315,2.3843,3394.8,3393.5,3.0]
[1721061923542,2.3843,3394.8,3393.8,2.94646]
[1721061923747,2.3843,3394.8,3394.1,2.94626]
[1721061923909,2.3843,3394.8,3394.0,2.94634]
[1721061924109,0.07365535,3394.7,3393.9,2.94645]
[1721061924531,2.680225,3394.8,3393.5,3.0]
[1721061924726,0.07366012,3394.7,3393.6,2.94671]
[1721061925041,3.1,3394.6,3393.4,7.4]
[1721061925228,0.0736678,3394.5,3393.4,7.4]
[1721061925403,2.4702,3394.3,3393.4,7.4]
[1721061925603,0.07367057,3394.2,3393.3,2.94691]
[1721061926248,2.4702,3394.3,3393.3,2.94691]
[1721061926603,3.47467055,3394.2,3392.9,2.94728]
[1721061926808,3.47467055,3394.2,3393.0,2.94722]
[1721061926809,0.97023373,3394.1,3393.0,2.94722]
[1721061927112,5.5305,3393.9,3392.6,0.1192948]
[1721061927325,3.401,3393.7,3392.6,0.1192948]
[1721061927523,0.07368641,3393.6,3392.6,0.1192948]
[1721061927719,0.34746864,3393.5,3392.6,0.1192948]
[1721061927925,0.0736864,3393.4,3392.6,3.0668248]
[1721061928331,0.34746864,3393.5,3392.6,0.1192948]
[1721061928647,0.07368835,3393.4,3392.6,0.1192948]
[1721061928839,2.3337,3393.3,3392.6,0.1192948]
[1721061929019,0.34917748,3393.2,3392.6,0.1192948]
[1721061929610,3.1,3393.1,3392.6,0.1192948]
[1721061929916,0.07370083,3393.0,3392.6,0.1192948]
[1721061930242,0.2754857,3393.2,3392.6,0.1192948]
[1721061930619,2.3337,3393.3,3392.6,0.1192948]
[1721061930831,2.2581,3394.0,3393.0,2.94722]
[1721061931015,2.2581,3394.0,3393.1,3.05893946]
[1721061931221,2.3043,3395.1,3393.9,2.94645]
[1721061931424,2.3043,3395.1,3394.1,2.94628]
[1721061931654,2.3043,3395.1,3393.9,2.94645]
[1721061931655,0.30408748,3395.0,3393.9,2.94645]
[1721061931857,0.23043,3395.0,3393.8,2.94649]
[1721061932060,2.3043,3395.1,3393.5,3.0]
[1721061932264,2.2902,3395.7,3394.9,2.94552]
[1721061932565,4.32705817,3398.2,3395.0,0.05890304]
[1721061932566,2.4315,3396.6,3395.0,0.05890304]
[1721061932764,2.4315,3396.6,3395.7,2.94489]
[1721061932922,2.4315,3396.6,3395.4,2.94511]
[1721061932923,3.17362481,3396.5,3395.4,2.94511]
[1721061933148,3.1,3396.3,3394.9,3.0]
[1721061933342,3.1,3396.1,3395.0,2.9455]
[1721061933676,5.3647,3395.9,3394.6,3.0]
[1721061933827,3.401,3395.7,3394.7,2.94576]
[1721061934029,0.07364173,3395.6,3394.7,2.94576]
[1721061934363,3.401,3395.7,3393.1,2.4118]
[1721061934364,3.1,3395.4,3393.1,2.4118]
[1721061934571,0.07365319,3395.3,3393.1,2.4118]
[1721061934729,0.34746417,3395.5,3393.8,2.94649]
[1721061934925,2.2647,3395.9,3393.9,3.0]
[1721061935169,2.2647,3395.9,3395.1,2.94541]
[1721061935443,2.2647,3395.9,3395.0,2.94548]
[1721061935444,0.07363935,3395.8,3395.0,2.94548]
[1721061935766,2.33833396,3395.9,3395.3,2.94523]
[1721061936061,2.4985334,3395.9,3395.3,2.94523]
[1721061936265,2.2647,3395.9,3395.3,2.94523]
[1721061936463,2.2647,3395.9,3395.1,2.94538]
[1721061936667,2.2647,3395.9,3394.9,2.94559]
[1721061936668,0.07363025,3395.8,3394.9,2.94559]
[1721061936971,2.2647,3395.9,3394.9,2.94559]
[1721061937133,0.07363071,3395.8,3394.9,2.94559]
[1721061937469,2.2647,3395.9,3395.2,2.94529]
[1721061937652,0.90061248,3396.4,3395.7,2.94489]
[1721061937831,2.4861,3396.6,3395.7,2.94489]
[1721061938037,2.4861,3396.6,3395.8,2.9448]
[1721061938433,2.4861,3396.6,3395.8,2.94474]
[1721061938637,2.4644,3397.3,3396.1,2.94447]
[1721061938834,0.55644,3397.2,3396.2,2.94445]
[1721061939040,0.55644,3397.2,3396.0,2.94463]
[1721061939262,0.07360939,3397.1,3396.1,2.94454]
[1721061939586,0.55644,3397.2,3396.2,2.94446]
[1721061939739,0.55644,3397.2,3396.0,2.94459]
[1721061939936,0.68569336,3397.1,3395.8,2.94476]
[1721061940162,0.68569336,3397.1,3395.9,2.9447]
[1721061940364,0.68569336,3397.1,3396.0,2.94462]
[1721061940776,0.68569336,3397.1,3395.7,3.0]
[1721061940943,0.68569336,3397.1,3395.8,2.94474]
[1721061941144,0.92500934,3397.0,3395.8,2.94474]
[1721061941345,0.92500934,3397.0,3396.0,2.94456]
[1721061941569,0.07361196,3396.9,3395.8,2.94476]
[1721061941783,0.07361196,3396.9,3395.7,3.0]
[1721061942073,3.1,3396.7,3395.2,2.94532]
[1721061942250,3.1,3396.5,3395.2,2.94527]
[1721061942446,0.07362975,3396.4,3395.2,2.94527]
[1721061942678,0.07362975,3396.4,3394.5,2.94592]
[1721061942876,3.1,3396.2,3394.7,2.94576]
[1721061943080,3.1,3396.2,3394.5,2.94592]
[1721061943081,0.07363546,3396.1,3394.6,2.94585]
[1721061943249,0.07363546,3396.1,3394.4,2.94596]
[1721061943250,3.1,3395.9,3394.4,2.94596]
[1721061943452,5.3886,3395.7,3394.5,2.94593]
[1721061943665,0.07364454,3395.6,3394.5,2.94593]
[1721061943865,0.54622445,3395.5,3393.2,8.97861]
[1721061944061,0.07365014,3395.4,3394.5,2.94592]
[1721061944394,2.2886,3395.7,3394.7,2.94569]
[1721061944581,0.07364476,3395.6,3394.5,2.94592]
[1721061944754,0.07364476,3395.6,3394.1,2.94627]
[1721061944948,0.07364476,3395.6,3392.7,2.94746]
[1721061944949,3.1,3395.4,3393.2,2.3365]
[1721061945188,3.1,3395.2,3394.1,2.94627]
[1721061945384,0.37236448,3395.3,3394.3,2.94603]
[1721061945584,0.0736502,3395.2,3394.0,2.94635]
[1721061945788,0.0736502,3395.2,3393.2,5.7375]
[1721061945789,0.0736502,3395.2,3394.1,2.94628]
[1721061945986,0.0736502,3395.2,3393.8,2.94653]
[1721061946449,3.1,3395.0,3393.4,2.94687]
[1721061946652,0.07366193,3394.9,3393.7,2.94659]
[1721061946854,0.55388619,3394.8,3393.7,2.94659]
[1721061947053,0.07365911,3394.7,3393.7,2.94659]
[1721061947264,3.17366192,3394.7,3393.2,2.947]
[1721061947453,3.1,3394.5,3393.2,2.947]
[1721061947670,2.3627,3394.3,3393.2,2.94706]
[1721061947880,0.61994148,3394.2,3392.6,3.0668748]
[1721061948067,0.07367148,3394.2,3392.8,2.94741]
[1721061948604,3.17367148,3394.2,3392.9,2.94725]
[1721061948826,3.17367148,3394.2,3393.1,2.94715]
[1721061949184,3.17367148,3394.2,3392.7,2.94749]
[1721061949400,0.85363715,3394.1,3393.0,2.94718]
[1721061949588,0.07367784,3394.0,3392.7,2.94749]
[1721061949796,0.07367784,3394.0,3393.0,2.94724]
[1721061950102,3.17367784,3394.0,3392.7,2.94749]
[1721061950304,0.4027315,3393.9,3392.8,3.0]
[1721061950505,0.07368547,3393.8,3392.8,3.0]
[1721061950804,2.3627,3394.3,3392.8,5.9474]
[1721061951103,0.55,3394.2,3392.8,3.0]
[1721061951285,0.07367841,3394.1,3393.0,2.94716]
[1721061951481,0.07367841,3394.1,3392.7,2.94749]
[1721061951693,3.65363784,3394.0,3392.9,2.9473]
[1721061951913,2.3627,3394.3,3393.1,2.94708]
[1721061952101,2.3627,3394.3,3392.9,2.94726]
[1721061952302,3.17368037,3394.2,3392.6,3.0668648]
[1721061952506,3.17368037,3394.2,3392.7,3.0]
[1721061952708,0.07368448,3394.1,3393.2,2.94701]
[1721061953008,2.3627,3394.3,3393.3,2.94691]
[1721061953793,2.3627,3394.3,3393.1,2.94714]
[1721061954108,2.3627,3394.3,3393.3,2.9469]
[1721061955205,0.07367146,3394.2,3392.6,0.1192948]
[1721061955388,0.07367146,3394.2,3392.9,2.94732]
[1721061955588,0.85363715,3394.1,3392.9,2.94732]
[1721061955790,3.17367537,3394.0,3392.6,0.1192948]
[1721061955974,0.85363715,3394.1,3392.8,2.94741]
[1721061956175,0.85363715,3394.1,3393.0,2.94717]
[1721061956378,0.63163372,3394.0,3393.0,2.94717]
[1721061956598,5.4746,3393.9,3392.6,3.0668348]
[1721061956880,5.4746,3393.9,3392.9,2.94731]
[1721061956881,2.3746,3393.9,3392.9,2.94731]
[1721061957817,0.07368189,3393.8,3392.6,0.1192948]
[1721061958119,0.24482819,3393.7,3392.6,0.1192948]
[1721061958276,3.1,3393.5,3392.6,0.1192948]
[1721061958477,3.1,3393.1,3392.6,0.1192948]
[1721061958682,0.07370017,3393.0,3392.6,0.1192948]
[1721061961623,5.5914,3392.7,3392.6,0.1192948]
[1721061961922,6.55301002,3392.7,3392.6,0.1192948]
[1721061962117,3.0,3393.2,3392.6,0.1192948]
[1721061962317,2.2775,3393.3,3392.6,0.1192948]
[1721061963017,0.24482819,3393.7,3392.6,0.1192948]
[1721061963218,2.4807,3393.9,3393.2,2.94698]
[1721061963923,0.07367463,3393.8,3392.6,0.1192948]
[1721061964128,3.73911209,3393.8,3392.7,5.94746]
[1721061964289,3.73911209,3393.8,3392.7,2.94746]
[1721061964489,3.73911209,3393.8,3392.8,5.9474]
[1721061964690,3.73911209,3393.8,3392.8,2.9474]
[1721061965187,3.73911209,3393.8,3392.6,3.0668448]
[1721061965397,0.62198121,3393.7,3392.8,2.94741]
[1721061965609,3.17368605,3393.6,3392.6,0.1192948]
[1721061966217,0.62198121,3393.7,3392.6,3.0668648]
[1721061966400,3.1,3393.8,3392.8,2.9474]
[1721061966597,0.07368602,3393.7,3392.6,3.0668248]
[1721061966806,0.07368602,3393.7,3392.6,0.1192948]
[1721061966807,3.1,3393.6,3392.6,0.1192948]
[1721061967005,0.07369421,3393.5,3392.6,0.1192948]
[1721061967920,3.1,3393.2,3392.6,0.1192948]
[1721061968093,3.1,3393.0,3392.6,0.1192948]
[1721061968290,1.50815542,3393.1,3392.6,0.1192948]
[1721061968291,3.1,3392.7,3392.6,0.1192948]
[1721061968514,3.17371061,3392.7,3392.6,0.1192948]
[1721061968688,5.56641061,3392.7,3392.6,0.1192948]
[1721061968893,10.01315167,3392.7,3392.6,0.1192948]
[1721061969294,10.01315167,3392.7,3391.0,2.94895]
[1721061969637,3.1,3392.5,3391.0,2.94895]
[1721061969794,3.1,3392.3,3390.4,2.94947]
[1721061969998,3.1,3392.0,3389.7,2.4582]
[1721061970300,4.0729913,3391.9,3390.8,2.9491]
[1721061970609,4.0729913,3391.9,3390.9,2.94905]
[1721061970802,3.99926292,3391.9,3390.9,2.94905]
[1721061971005,0.0737275,3391.8,3391.1,2.94887]
[1721061971312,2.2689,3392.1,3391.1,2.94883]
[1721061971512,2.94657,3393.8,3391.2,0.05897393]
[1721061971513,3.17054106,3392.7,3391.2,0.05897393]
[1721061971715,2.2738,3392.7,3392.0,2.9481]
[1721061971918,3.1,3393.6,3392.3,2.94784]
[1721061972092,0.07369748,3393.5,3391.8,2.94825]
[1721061972443,5.5799,3393.2,3391.8,2.94825]
[1721061972619,0.07370699,3393.1,3391.6,2.9484]
[1721061972824,3.1,3392.9,3391.7,2.94833]
[1721061972994,3.1737104,3392.9,3391.6,2.94842]
[1721061973196,3.1737104,3392.9,3390.1,4.76624115]
[1721061973197,2.4457,3392.8,3391.2,2.94877]
[1721061973442,3.17371814,3392.7,3391.0,2.94892]
[1721061973646,3.1,3392.2,3390.8,2.94913]
[1721061973794,3.1,3392.0,3391.0,2.94892]
[1721061974107,0.07372528,3391.9,3391.1,2.94888]
[1721061974307,0.07372528,3391.9,3390.9,2.949]
[1721061974698,0.07372528,3391.9,3390.9,2.94906]
[1721061974902,3.17372608,3392.5,3391.0,2.94896]
[1721061975157,3.1,3392.1,3390.5,3.0]
[1721061975355,3.1,3392.1,3390.8,2.94909]
[1721061975356,3.17372954,3392.1,3390.8,2.94909]
[1721061975628,3.1,3392.1,3390.9,2.94905]
[1721061976147,3.1,3392.1,3390.6,2.94931]
[1721061976148,0.07372807,3392.0,3390.6,2.94931]
[1721061976356,0.07372807,3392.0,3390.4,2.94947]
[1721061976357,3.1,3391.9,3390.5,2.9494]
[1721061976501,3.1,3391.7,3390.5,2.9494]
[1721061976701,3.1,3391.5,3390.6,2.94931]
[1721061976949,0.07373426,3391.4,3390.6,2.94931]
[1721061977430,0.07373426,3391.3,3390.5,2.94935]
[1721061977632,2.2846,3391.2,3390.1,5.9497]
[1721061977839,2.2846,3391.2,3390.1,3.0]
[1721061977840,3.1,3391.1,3390.1,3.0]
[1721061978127,0.07374437,3391.0,3390.0,2.9498]
[1721061978544,0.07374437,3391.0,3389.8,2.94996]
[1721061978743,0.07374437,3391.0,3389.4,2.95034]
[1721061979121,0.07374437,3391.0,3389.5,2.95027]
[1721061979325,3.1,3390.8,3389.6,2.95019]
[1721061979733,0.073756,3390.7,3389.6,2.95019]
[1721061979928,0.073756,3390.7,3389.4,2.95033]
[1721061980122,3.1,3390.5,3389.2,0.1192948]
[1721061980328,0.07376099,3390.4,3389.2,0.1192948]
[1721061980522,3.6634661,3390.3,3389.2,0.1192948]
[1721061980729,0.07376166,3390.2,3389.2,6.0697748]
[1721061981023,0.07376166,3390.2,3389.3,2.95044]
[1721061981216,0.07376166,3390.2,3389.4,2.95037]
[1721061981416,0.44748444,3390.2,3389.2,0.1192948]
[1721061981621,0.44748444,3390.2,3389.3,2.95045]
[1721061981814,3.1,3389.7,3389.2,0.1192948]
[1721061982015,0.07377236,3389.6,3389.2,0.1192948]
[1721061982217,3.1,3390.0,3389.2,0.1192948]
[1721061982417,2.4609,3390.1,3389.2,3.0698348]
[1721061982654,2.4609,3390.1,3389.3,2.95044]
[1721061982960,2.4609,3390.1,3389.2,3.0698348]
[1721061983120,2.4609,3390.1,3389.2,0.1192948]
[1721061983326,3.1,3390.0,3389.2,0.1192948]
[1721061984050,2.70699,3390.1,3389.2,3.0698348]
[1721061984242,2.70699,3390.1,3389.2,0.1192948]
[1721061984438,2.4609,3390.1,3389.2,0.1192948]
[1721061984632,2.3447,3390.8,3389.6,2.95019]
[1721061985015,2.3447,3390.8,3389.7,2.95009]
[1721061985440,3.1,3390.7,3389.7,2.95009]
[1721061985637,2.3447,3390.8,3389.8,2.95002]
[1721061986230,2.3447,3390.8,3390.0,2.94984]
[1721061986430,2.3447,3390.8,3389.8,2.95002]
[1721061986632,3.1,3390.7,3389.7,2.9501]
[1721061986828,3.1,3390.7,3389.8,2.95002]
[1721061987270,2.3447,3390.8,3390.1,2.94969]
[1721061987433,7.3,3391.6,3390.5,2.9494]
[1721061987434,5.3852,3391.4,3390.5,2.9494]
[1721061987848,2.2852,3391.4,3389.9,35.0]
[1721061988051,2.2852,3391.4,3390.8,2.94908]
[1721061988247,0.07372889,3391.3,3390.4,2.9495]
[1721061988454,0.07373602,3391.2,3390.0,2.94983]
[1721061988680,0.07373602,3391.2,3389.6,7.4]
[1721061988681,0.07373602,3391.2,3390.3,2.94958]
[1721061988966,2.2852,3391.4,3390.5,2.94941]
[1721061988967,0.5458936,3391.1,3390.5,2.94941]
[1721061989270,2.2852,3391.4,3390.5,2.94941]
[1721061989468,0.07373636,3391.3,3390.2,2.94967]
[1721061989656,5.3852,3391.4,3390.3,2.94958]
[1721061989966,2.2852,3391.4,3390.4,3.05898989]
[1721061990174,2.4282,3392.2,3390.4,3.05898989]
[1721061990374,0.97282,3392.1,3390.9,2.94904]
[1721061990679,3.1,3392.1,3390.7,2.94924]
[1721061990875,3.17373001,3392.1,3390.7,2.94924]
[1721061991087,3.17373001,3392.1,3390.3,3.0]
[1721061991383,3.1,3391.9,3390.6,2.94925]
[1721061991551,3.472373,3391.8,3390.6,2.94925]
[1721061991756,2.4282,3392.2,3390.9,2.94905]
[1721061992271,2.4282,3392.2,3390.8,2.94908]
[1721061992272,2.5019234,3392.2,3390.8,2.94908]
[1721061992585,3.1,3392.0,3390.8,2.94908]
[1721061992777,3.1,3392.0,3391.1,2.94884]
[1721061992986,2.4282,3392.2,3390.9,2.94903]
[1721061993372,0.07371244,3392.1,3391.5,2.94854]
[1721061993550,2.4282,3392.2,3391.6,2.94844]
[1721061993744,0.07371192,3392.1,3391.3,2.94869]
[1721061994002,0.07371192,3392.1,3391.0,2.94892]
[1721061994203,3.66019119,3392.0,3390.7,5.94921]
[1721061994514,0.07372504,3391.9,3390.5,2.94939]
[1721061994993,0.07372504,3391.9,3390.7,2.94918]
[1721061995354,0.07372504,3391.9,3390.5,2.94939]
[1721061995550,0.07372504,3391.9,3390.7,2.94922]
[1721061995750,3.47339162,3391.8,3390.7,2.94922]
[1721061995951,0.07372979,3391.7,3390.7,2.94922]
[1721061996892,0.37339162,3391.8,3391.0,2.94892]
[1721061997053,0.56019119,3392.0,3391.2,2.94878]
[1721061997254,0.07372431,3391.8,3391.0,2.94892]
[1721061997450,0.073723,3391.7,3391.0,2.94892]
[1721061997690,2.4282,3392.2,3391.3,2.94869]
[1721061998004,2.4282,3392.2,3391.8,2.94826]
[1721061998148,2.4732,3393.0,3391.9,2.94813]
[1721061998350,3.2032,3393.0,3391.8,2.94821]
[1721061998551,0.2941,3393.6,3392.7,2.94744]
[1721061998752,0.07368749,3393.5,3392.3,2.94782]
[1721061998950,0.07368749,3393.5,3391.9,38.0]
[1721061999185,0.07368749,3393.5,3392.2,2.94788]
[1721061999701,3.1,3393.3,3392.1,2.94802]
[1721061999855,3.1,3393.1,3392.1,2.94802]
[1721062000052,0.0737016,3393.0,3392.0,2.94808]
[1721062000395,0.0737016,3393.0,3391.8,2.94826]
[1721062000396,0.0737016,3393.0,3392.1,2.94802]